bitfinex-derivatives/quotes_BTCF0:USTF0_20241130
["timestamp","ask_amount","ask_price","bid_price","bid_amount"]
[1732973420087,0.20876376,96656.0,96655.0,0.2568634]
[1732973420687,0.20876376,96656.0,96655.0,0.009]
[1732973439609,0.20876376,96656.0,96655.0,0.01223403]
[1732973441401,0.20876376,96656.0,96655.0,0.009]
[1732973449022,0.20876376,96656.0,96655.0,0.01223405]
[1732973452403,0.20876376,96656.0,96655.0,0.009]
[1732973456709,0.20876376,96656.0,96655.0,0.01223413]
[1732973460813,0.20876376,96656.0,96655.0,0.009]
[1732973464022,0.20876376,96656.0,96655.0,0.26035299]
[1732973464411,0.20876376,96656.0,96655.0,0.01223414]
[1732973466323,0.20876376,96656.0,96655.0,0.26035299]
[1732973466624,0.20876376,96656.0,96655.0,0.01223422]
[1732973468025,0.20876376,96656.0,96655.0,0.009]
[1732973469018,0.20876376,96656.0,96655.0,0.01223413]
[1732973470018,0.20876376,96656.0,96655.0,0.009]
[1732973470223,0.20876376,96656.0,96655.0,0.01223413]
[1732973470619,0.20876376,96656.0,96655.0,0.009]
[1732973474519,0.20876376,96656.0,96655.0,0.01223428]
[1732973475229,0.20776376,96656.0,96655.0,0.01123428]
[1732973475727,0.33172376,96656.0,96655.0,0.01123428]
[1732973476127,0.33172376,96656.0,96655.0,0.008]
[1732973477017,0.22846211,96656.0,96655.0,0.008]
[1732973477221,0.35242211,96656.0,96655.0,0.008]
[1732973477730,0.71322211,96656.0,96655.0,0.008]
[1732973477923,0.71322211,96656.0,96655.0,0.1940353]
[1732973478127,0.71322211,96656.0,96655.0,0.008]
[1732973478620,0.71322211,96656.0,96655.0,0.1940353]
[1732973478817,0.71322211,96656.0,96655.0,0.008]
[1732973479526,0.22846211,96656.0,96655.0,0.008]
[1732973479734,0.35242211,96656.0,96655.0,0.008]
[1732973479927,0.35242211,96656.0,96655.0,0.1940353]
[1732973480121,0.35242211,96656.0,96655.0,0.008]
[1732973480727,0.35242211,96656.0,96655.0,0.1940353]
[1732973480928,0.35242211,96656.0,96655.0,0.008]
[1732973481127,0.22846211,96656.0,96655.0,0.1940353]
[1732973481929,0.22846211,96656.0,96655.0,0.008]
[1732973491031,0.20776376,96656.0,96655.0,0.008]
[1732973491226,0.20776376,96656.0,96655.0,0.25611885]
[1732973491434,0.20776376,96656.0,96655.0,0.011234]
[1732973491842,0.20776376,96656.0,96655.0,0.044034]
[1732973492032,0.20776376,96656.0,96655.0,0.0408]
[1732973492226,0.20776376,96656.0,96655.0,0.29196185]
[1732973493930,0.20776376,96656.0,96655.0,0.04403391]
[1732973494326,0.20776376,96656.0,96655.0,0.0408]
[1732973496536,0.20776376,96656.0,96655.0,0.29196187]
[1732973497528,0.20776376,96656.0,96655.0,0.04403393]
[1732973498731,0.20776376,96656.0,96655.0,0.0408]
[1732973499041,0.20776376,96656.0,96655.0,0.04403392]
[1732973506138,0.20776376,96656.0,96655.0,0.04403393]
[1732973509147,0.20776376,96656.0,96655.0,0.01123393]
[1732973509760,0.23906376,96656.0,96655.0,0.008]
[1732973509940,0.23906376,96656.0,96655.0,0.0112342]
[1732973510743,0.23906376,96656.0,96655.0,0.008]
[1732973516348,0.20776376,96656.0,96655.0,0.01123411]
[1732973518344,0.20776376,96656.0,96655.0,0.25916205]
[1732973518846,0.20776376,96656.0,96655.0,0.25916195]
[1732973519051,0.20776376,96656.0,96655.0,0.01123401]
[1732973520143,0.20776376,96656.0,96655.0,0.19709005]
[1732973520455,0.20776376,96656.0,96655.0,0.008]
[1732973523657,0.20776376,96656.0,96655.0,0.01123402]
[1732973525364,0.20776376,96656.0,96655.0,0.008]
[1732973525543,0.20776376,96656.0,96655.0,0.01123402]
[1732973526548,0.20776376,96656.0,96655.0,0.19709006]
[1732973526847,0.20776376,96656.0,96655.0,0.01123402]
[1732973531354,0.20776376,96656.0,96655.0,0.25910086]
[1732973531757,0.20776376,96656.0,96655.0,0.25586684]
[1732973534163,0.20776376,96656.0,96655.0,0.008]
[1732973535759,0.20776376,96656.0,96655.0,0.01123403]
[1732973540457,0.20776376,96656.0,96655.0,0.008]
[1732973543569,0.20776376,96656.0,96655.0,0.19393862]
[1732973545266,0.20776376,96656.0,96655.0,0.008]
[1732973545468,0.20776376,96656.0,96655.0,0.19399656]
[1732973546165,0.20776376,96656.0,96655.0,0.008]
[1732973551776,0.20776376,96656.0,96655.0,0.25592747]
[1732973552676,0.20776376,96656.0,96655.0,0.008]
[1732973552880,0.20776376,96656.0,96655.0,0.25592061]
[1732973553478,0.20776376,96656.0,96655.0,0.008]
[1732973554879,0.20776376,96656.0,96655.0,0.25592061]
[1732973555077,0.20776376,96656.0,96655.0,0.008]
[1732973555276,0.20776376,96656.0,96655.0,0.25589666]
[1732973555788,0.20776376,96656.0,96655.0,0.008]
[1732973556586,0.20776376,96656.0,96655.0,0.25588739]
[1732973556877,0.20776376,96656.0,96655.0,0.008]
[1732973557181,0.20776376,96656.0,96655.0,0.19715007]
[1732973557375,0.20776376,96656.0,96655.0,0.01123413]
[1732973557774,0.20776376,96656.0,96655.0,0.19392356]
[1732973557977,0.20776376,96656.0,96655.0,0.008]
[1732973558383,0.20776376,96656.0,96655.0,0.19392356]
[1732973558578,0.20776376,96656.0,96655.0,0.19715767]
[1732973559085,0.20776376,96656.0,96655.0,0.01123411]
[1732973559280,0.20776376,96656.0,96655.0,0.19714863]
[1732973559482,0.20776376,96656.0,96655.0,0.19391452]
[1732973559685,0.20776376,96656.0,96655.0,0.19714863]
[1732973560483,0.20776376,96656.0,96655.0,0.01123411]
[1732973560678,0.20776376,96656.0,96655.0,0.19714628]
[1732973560882,0.20776376,96656.0,96655.0,0.01123411]
[1732973561895,0.20776376,96656.0,96655.0,0.19714426]
[1732973562191,0.20776376,96656.0,96655.0,0.008]
[1732973566092,0.20776376,96656.0,96655.0,0.01123407]
[1732973568981,0.20776376,96656.0,96655.0,0.008]
[1732973572096,0.20776376,96656.0,96655.0,0.19382129]
[1732973573596,0.20776376,96656.0,96655.0,0.008]
[1732973574689,0.20776376,96656.0,96655.0,0.19382036]
[1732973576889,0.20776376,96656.0,96655.0,0.008]
[1732973577083,0.20776376,96656.0,96655.0,0.01123402]
[1732973578192,0.20776376,96656.0,96655.0,0.008]
[1732973578397,0.20776376,96656.0,96655.0,0.01123402]
[1732973582298,0.20776376,96656.0,96655.0,0.06294102]
[1732973582797,0.15605776,96656.0,96655.0,0.06294102]
[1732973583389,0.15605776,96656.0,96655.0,0.059707]
[1732973583583,0.00109833,96656.0,96655.0,0.06294094]
[1732973584184,0.00109833,96656.0,96655.0,0.06294083]
[1732973584387,0.05280433,96656.0,96655.0,0.06294083]
[1732973584787,0.05280433,96656.0,96655.0,0.059707]
[1732973585692,0.05280433,96656.0,96655.0,0.06294083]
[1732973586086,0.05280433,96656.0,96655.0,0.059707]
[1732973586489,0.05280433,96656.0,96655.0,0.06294084]
[1732973586691,0.05280433,96656.0,96655.0,0.059707]
[1732973591994,0.05280433,96656.0,96655.0,0.36894651]
[1732973592595,0.05280433,96656.0,96655.0,0.059707]
[1732973593097,0.05280433,96656.0,96655.0,0.36894651]
[1732973593497,0.05280433,96656.0,96655.0,0.8449933]
[1732973593698,0.05280433,96656.0,96655.0,0.84499213]
[1732973594200,0.05280433,96656.0,96655.0,0.31059719]
[1732973594407,0.05280433,96656.0,96655.0,0.06294083]
[1732973595600,0.05280433,96656.0,96655.0,0.31059719]
[1732973596104,0.00109833,96656.0,96655.0,0.06294083]
[1732973596609,0.033,96683.0,96675.0,0.051696]
[1732973596907,0.20907036,96676.0,96675.0,0.412496]
[1732973597605,0.20918065,96676.0,96675.0,0.412496]
[1732973598404,0.21218065,96676.0,96675.0,0.412496]
[1732973599605,0.21318065,96676.0,96675.0,0.412496]
[1732973601609,0.16148465,96676.0,96675.0,0.412496]
[1732973602103,0.00411029,96676.0,96675.0,0.41572895]
[1732973602303,0.00411029,96676.0,96675.0,0.88839232]
[1732973602505,0.00411029,96676.0,96675.0,0.73790977]
[1732973602705,0.00411029,96676.0,96675.0,0.90195472]
[1732973603212,0.00411029,96676.0,96675.0,0.89678239]
[1732973603413,0.00411029,96676.0,96675.0,1.20536809]
[1732973603603,0.03643429,96702.0,96675.0,0.42413408]
[1732973603906,0.06098349,96701.0,96700.0,0.412483]
[1732973604205,0.0319,96709.0,96700.0,0.412483]
[1732973604206,0.15545173,96702.0,96700.0,0.48452]
[1732973604409,0.15545173,96702.0,96701.0,0.051682]
[1732973604608,0.00155168,96712.0,96711.0,0.051677]
[1732973604806,0.00155168,96712.0,96711.0,0.536197]
[1732973605006,0.15700341,96712.0,96711.0,0.536197]
[1732973605408,0.07424341,96712.0,96711.0,2.036197]
[1732973605714,0.0315,96719.0,96718.0,0.051673]
[1732973605903,0.0315,96719.0,96718.0,0.175393]
[1732973606208,0.15548268,96719.0,96718.0,0.12372]
[1732973606512,0.0309,96729.0,96728.0,0.051668]
[1732973606816,0.1863021,96729.0,96728.0,0.175388]
[1732973607508,0.1863021,96729.0,96728.0,1.675388]
[1732973608010,0.1883021,96729.0,96728.0,1.675388]
[1732973609102,0.1883021,96729.0,96728.0,1.675348]
[1732973609504,0.1893021,96729.0,96728.0,1.675348]
[1732973609705,0.1893021,96729.0,96728.0,0.175348]
[1732973610312,0.1893021,96729.0,96728.0,1.675348]
[1732973610698,0.1893021,96729.0,96728.0,0.175348]
[1732973611813,0.1893021,96729.0,96728.0,0.051668]
[1732973612013,0.1893021,96729.0,96728.0,0.175348]
[1732973613114,0.1893021,96729.0,96728.0,0.175308]
[1732973613508,0.0339,96729.0,96728.0,0.175308]
[1732973614202,0.003,96729.0,96728.0,0.175308]
[1732973614806,0.003,96729.0,96728.0,0.05489923]
[1732973615005,0.003,96729.0,96728.0,0.17853923]
[1732973615608,0.003,96729.0,96728.0,1.8633577]
[1732973616110,0.003,96729.0,96728.0,2.11010887]
[1732973616417,0.002,96729.0,96728.0,1.9252904]
[1732973616605,0.002,96729.0,96728.0,1.67853923]
[1732973617709,0.00155113,96732.0,96731.0,0.051666]
[1732973617912,0.00155113,96732.0,96731.0,0.41569723]
[1732973618617,0.00155113,96732.0,96731.0,0.41569717]
[1732973619006,0.00655113,96732.0,96731.0,0.05589717]
[1732973619205,0.01555113,96732.0,96731.0,0.42286705]
[1732973620707,0.01555113,96732.0,96731.0,0.73145275]
[1732973621010,0.01555113,96732.0,96731.0,2.23145275]
[1732973621513,0.0316,96745.0,96744.0,0.051659]
[1732973621809,0.18585332,96745.0,96744.0,0.05489017]
[1732973623002,0.18585332,96745.0,96744.0,1.55489017]
[1732973623207,0.18585332,96745.0,96744.0,1.56005981]
[1732973623408,0.0304,96747.0,96746.0,0.051658]
[1732973623607,0.0304,96747.0,96746.0,0.52729259]
[1732973623804,0.18629622,96747.0,96746.0,0.05488917]
[1732973624312,0.18629622,96747.0,96746.0,0.52729259]
[1732973625106,0.18629622,96747.0,96746.0,0.53246224]
[1732973625504,0.18629622,96747.0,96746.0,0.5324621]
[1732973625805,0.18629622,96747.0,96746.0,0.52729245]
[1732973626209,0.18629622,96747.0,96746.0,0.5324621]
[1732973626917,0.18629622,96747.0,96746.0,0.6560621]
[1732973627409,0.23795322,96747.0,96746.0,0.5324621]
[1732973627610,0.23795322,96747.0,96746.0,0.6560621]
[1732973627914,0.23795322,96747.0,96746.0,0.5324621]
[1732973628109,0.23795322,96747.0,96746.0,0.6560621]
[1732973628317,0.23795322,96747.0,96746.0,0.6620621]
[1732973628513,0.23795322,96747.0,96746.0,1.23705737]
[1732973628817,0.23795322,96747.0,96746.0,1.11345737]
[1732973629316,0.23795322,96747.0,96746.0,1.23951944]
[1732973629517,0.23795322,96747.0,96746.0,1.24051944]
[1732973629708,0.23795322,96747.0,96746.0,1.11691944]
[1732973629909,0.23795322,96747.0,96746.0,1.23405737]
[1732973631121,0.23795322,96747.0,96746.0,1.24151944]
[1732973631317,0.23795322,96747.0,96746.0,0.54292417]
[1732973631516,0.23795322,96747.0,96746.0,1.24151944]
[1732973631717,0.24195322,96747.0,96746.0,1.11491944]
[1732973631920,0.24195322,96747.0,96746.0,1.23851944]
[1732973632111,0.24195322,96747.0,96746.0,1.23851942]
[1732973632312,0.23795322,96747.0,96746.0,1.22665667]
[1732973632723,0.23795322,96747.0,96746.0,1.24151942]
[1732973632922,0.23995322,96747.0,96746.0,1.24051942]
[1732973633215,0.23995322,96747.0,96746.0,1.23082632]
[1732973633418,0.23995322,96747.0,96746.0,1.2288877]
[1732973633610,0.23995322,96747.0,96746.0,1.11691942]
[1732973633817,0.23995322,96747.0,96746.0,1.23405735]
[1732973634020,0.23995322,96747.0,96746.0,1.24051942]
[1732973634518,0.23795322,96747.0,96746.0,1.24251942]
[1732973634910,0.23795322,96747.0,96746.0,1.11891942]
[1732973635312,0.24195322,96747.0,96746.0,1.11691942]
[1732973635520,0.24195322,96747.0,96746.0,1.06526142]
[1732973635720,0.24195322,96747.0,96746.0,1.05879935]
[1732973636316,0.60275322,96747.0,96746.0,1.05879935]
[1732973636825,0.60275322,96747.0,96746.0,1.0536297]
[1732973637227,0.60275322,96747.0,96746.0,1.05074253]
[1732973637519,0.61075322,96747.0,96746.0,1.05174253]
[1732973637917,0.61075322,96747.0,96746.0,1.0485115]
[1732973638414,0.62320958,96747.0,96746.0,1.0485115]
[1732973640822,0.74680958,96747.0,96746.0,1.0485115]
[1732973641527,0.59170194,96747.0,96746.0,1.0485115]
[1732973642322,0.59170194,96747.0,96746.0,0.47345429]
[1732973643433,0.59170194,96747.0,96746.0,0.84389079]
[1732973644426,0.59170194,96747.0,96746.0,0.47345429]
[1732973645929,0.59170194,96747.0,96746.0,0.47346163]
[1732973646522,0.59170194,96747.0,96746.0,0.001]
[1732973647427,0.61238281,96747.0,96746.0,0.001]
[1732973649427,0.051661,96741.0,96737.0,0.30882928]
[1732973649628,0.051666,96731.0,96730.0,0.05399712]
[1732973649834,0.051666,96731.0,96730.0,0.47246458]
[1732973651019,0.051666,96731.0,96727.0,0.3608]
[1732973651020,0.15481801,96731.0,96729.0,0.30879337]
[1732973651220,0.175267,96730.0,96729.0,0.25684237]
[1732973651535,0.23282534,96730.0,96727.0,0.27572245]
[1732973651753,0.051678,96708.0,96707.0,0.0305]
[1732973652234,0.20598466,96708.0,96707.0,0.0305]
[1732973653322,0.15430666,96708.0,96707.0,0.0335]
[1732973653523,0.3608,96719.0,96707.0,0.1571]
[1732973653721,0.412472,96719.0,96717.0,0.051673]
[1732973653927,0.412472,96719.0,96718.0,0.0316]
[1732973654333,0.56765441,96719.0,96718.0,0.0316]
[1732973655131,0.20685441,96719.0,96718.0,0.0316]
[1732973655632,0.20685441,96719.0,96718.0,0.0326]
[1732973655822,0.20685441,96719.0,96718.0,0.0336]
[1732973656430,0.15518241,96719.0,96718.0,0.0336]
[1732973656731,0.20685441,96719.0,96718.0,0.0336]
[1732973657028,0.051666,96731.0,96730.0,0.051666]
[1732973657426,0.15611065,96731.0,96728.0,0.1236]
[1732973657731,0.051667,96730.0,96729.0,0.0331]
[1732973658129,0.20777765,96730.0,96729.0,0.0331]
[1732973658930,0.20977765,96730.0,96729.0,0.0331]
[1732973659233,0.21477765,96730.0,96729.0,0.0331]
[1732973660727,0.21377765,96730.0,96729.0,0.0331]
[1732973661332,0.21477765,96730.0,96729.0,0.0331]
[1732973669436,0.051669,96726.0,96725.0,0.1236]
[1732973671039,0.054669,96726.0,96725.0,0.1236]
[1732973671838,0.055669,96726.0,96725.0,0.1236]
[1732973672038,0.055669,96726.0,96722.0,0.3608]
[1732973672039,0.004,96726.0,96722.0,0.3608]
[1732973672240,0.05167,96723.0,96722.0,0.4844]
[1732973674147,0.05267,96723.0,96722.0,0.4844]
[1732973675537,0.05367,96723.0,96722.0,0.4844]
[1732973680441,0.05367,96723.0,96722.0,0.3608]
[1732973680646,0.051671,96722.0,96707.0,0.051679]
[1732973680850,0.051676,96712.0,96710.0,0.05399712]
[1732973681048,0.051676,96712.0,96708.0,0.12356]
[1732973681251,0.051676,96712.0,96709.0,0.12356]
[1732973681957,0.051676,96712.0,96711.0,0.3628]
[1732973682145,0.051676,96712.0,96711.0,0.3668]
[1732973688056,0.051676,96712.0,96711.0,0.418477]
[1732973692453,0.051676,96712.0,96711.0,0.3668]
[1732973694448,0.051676,96712.0,96711.0,0.418477]
[1732973701256,0.051676,96712.0,96711.0,0.3668]
[1732973702061,0.051676,96712.0,96711.0,0.418477]
[1732973703250,0.3917,96729.0,96711.0,0.3668]
[1732973703449,0.051674,96718.0,96717.0,0.051672]
[1732973705561,0.051674,96718.0,96717.0,0.052672]
[1732973705863,0.051674,96718.0,96717.0,0.053672]
[1732973713358,0.051674,96718.0,96717.0,0.002]
[1732973721977,0.051674,96718.0,96717.0,0.24932302]
[1732973723674,0.051674,96718.0,96717.0,0.002]
[1732973724472,0.051674,96718.0,96717.0,0.24931754]
[1732973724672,0.051674,96718.0,96717.0,0.002]
[1732973731679,0.0309,96729.0,96717.0,0.002]
[1732973731874,0.0309,96729.0,96723.0,0.051669]
[1732973732074,0.15534328,96726.0,96723.0,0.051669]
[1732973732283,0.15534328,96728.0,96723.0,0.051669]
[1732973732583,0.15570889,96725.0,96723.0,0.051669]
[1732973732883,0.15570889,96727.0,96723.0,0.051669]
[1732973733083,0.15570889,96724.0,96723.0,0.36021042]
[1732973733475,0.05167,96724.0,96723.0,0.051669]
[1732973733683,0.20689903,96724.0,96723.0,0.051669]
[1732973734384,0.20689903,96724.0,96723.0,0.412469]
[1732973735380,0.20989903,96724.0,96723.0,0.3608]
[1732973736480,0.20989903,96724.0,96723.0,0.37330758]
[1732973736686,0.20989903,96724.0,96723.0,0.3608]
[1732973740198,0.051671,96722.0,96721.0,0.01245979]
[1732973740392,0.051671,96722.0,96721.0,0.3608]
[1732973741482,0.052671,96722.0,96721.0,0.3608]
[1732973742894,0.053671,96722.0,96721.0,0.3608]
[1732973743399,0.053671,96722.0,96714.0,0.0331]
[1732973743400,0.051673,96717.0,96716.0,0.24688434]
[1732973743599,0.051675,96715.0,96714.0,0.27998434]
[1732973743896,0.051675,96715.0,96714.0,0.0331]
[1732973744101,0.051675,96714.0,96712.0,0.12356]
[1732973744907,0.051675,96714.0,96713.0,0.37323881]
[1732973745403,0.051675,96714.0,96713.0,0.37423881]
[1732973746896,0.051675,96714.0,96713.0,0.37723881]
[1732973756209,0.051675,96714.0,96713.0,0.6241269]
[1732973759006,0.051675,96714.0,96713.0,0.37723881]
[1732973764107,0.051675,96714.0,96713.0,0.01643881]
[1732973771111,0.051675,96714.0,96713.0,0.32498023]
[1732973771310,0.051675,96714.0,96713.0,0.79750526]
[1732973771518,0.051675,96714.0,96713.0,0.4889649]
[1732973771916,0.051672,96720.0,96713.0,0.4889649]
[1732973772121,0.051672,96720.0,96718.0,0.051672]
[1732973772314,0.051672,96720.0,96719.0,0.6289385]
[1732973772914,0.051672,96720.0,96719.0,0.62892219]
[1732973774117,0.051672,96720.0,96719.0,0.15644]
[1732973774321,0.051672,96720.0,96719.0,0.0322]
[1732973774822,0.051672,96720.0,96719.0,0.27950569]
[1732973775013,0.051672,96720.0,96719.0,0.0322]
[1732973775319,0.051672,96720.0,96719.0,0.27950006]
[1732973775824,0.051672,96720.0,96719.0,0.0322]
[1732973776922,0.051672,96720.0,96719.0,0.27949023]
[1732973777317,0.051672,96720.0,96719.0,0.0322]
[1732973778416,0.051672,96720.0,96719.0,0.27948331]
[1732973781621,0.051672,96720.0,96719.0,0.0322]
[1732973782318,0.051672,96720.0,96715.0,0.30911856]
[1732973782517,0.051672,96720.0,96716.0,0.13004]
[1732973782518,0.051673,96717.0,96716.0,0.13004]
[1732973783627,0.051673,96717.0,96715.0,0.001]
[1732973784221,0.051673,96717.0,96716.0,0.002]
[1732973784728,0.051673,96717.0,96715.0,0.001]
[1732973784729,0.051673,96717.0,96715.0,0.003]
[1732973785214,0.051673,96717.0,96715.0,0.002]
[1732973785415,0.051675,96715.0,96714.0,0.3608]
[1732973787228,0.051675,96715.0,96714.0,0.3618]
[1732973787830,0.051675,96715.0,96714.0,0.3648]
[1732973789436,0.051675,96715.0,96714.0,0.004]
[1732973790925,0.56717157,96715.0,96714.0,0.004]
[1732973792434,0.52649657,96715.0,96706.0,9.533e-05]
[1732973792630,0.051677,96711.0,96710.0,0.18549332]
[1732973792831,0.0325,96714.0,96706.0,9.533e-05]
[1732973793131,0.051677,96711.0,96710.0,0.18549917]
[1732973793340,0.051676,96712.0,96710.0,0.18547304]
[1732973793526,0.1554793,96711.0,96710.0,0.18547304]
[1732973794036,0.051676,96712.0,96710.0,0.18547304]
[1732973794228,0.051676,96712.0,96706.0,9.533e-05]
[1732973794229,0.15603845,96711.0,96709.0,0.18547304]
[1732973794427,0.051677,96710.0,96709.0,0.18547304]
[1732973794637,0.15603845,96713.0,96706.0,9.533e-05]
[1732973794934,0.051679,96707.0,96706.0,9.533e-05]
[1732973795440,0.20689822,96707.0,96706.0,9.533e-05]
[1732973796341,0.21189822,96707.0,96706.0,9.533e-05]
[1732973800438,0.57269822,96707.0,96706.0,9.533e-05]
[1732973805138,0.70177822,96707.0,96706.0,9.533e-05]
[1732973815551,0.57269822,96707.0,96706.0,9.533e-05]
[1732973817848,0.21189822,96707.0,96706.0,9.533e-05]
[1732973819251,0.21189822,96707.0,96706.0,0.18548837]
[1732973820156,0.21189822,96707.0,96706.0,9.533e-05]
[1732973825349,0.056679,96707.0,96706.0,0.36089533]
[1732973826751,0.056679,96707.0,96706.0,9.533e-05]
[1732973829058,0.056679,96707.0,96706.0,0.18567768]
[1732973829559,0.056679,96707.0,96706.0,9.533e-05]
[1732973831061,0.056679,96707.0,96706.0,0.18564381]
[1732973831457,0.056679,96707.0,96706.0,9.533e-05]
[1732973831660,0.056679,96707.0,96706.0,0.18564401]
[1732973832856,0.056679,96707.0,96706.0,9.533e-05]
[1732973833055,0.056679,96707.0,96706.0,0.18563573]
[1732973834053,0.056679,96707.0,96706.0,9.533e-05]
[1732973834262,0.056679,96707.0,96706.0,0.24755246]
[1732973835271,0.056679,96707.0,96706.0,9.533e-05]
[1732973837866,0.056679,96707.0,96706.0,0.24748634]
[1732973838071,0.056679,96707.0,96706.0,9.533e-05]
[1732973840869,0.056679,96707.0,96706.0,0.24752319]
[1732973841075,0.056679,96707.0,96706.0,9.533e-05]
[1732973849464,0.056679,96707.0,96706.0,0.18577181]
[1732973850874,0.056679,96707.0,96706.0,9.533e-05]
[1732973851077,0.056679,96707.0,96706.0,0.18577181]
[1732973851275,0.21128981,96707.0,96706.0,9.533e-05]
[1732973851667,0.34036981,96707.0,96706.0,9.533e-05]
[1732973854179,0.34036981,96707.0,96706.0,3.3e-07]
[1732973854780,0.35260586,96707.0,96706.0,3.3e-07]
[1732973855083,0.35060586,96707.0,96706.0,3.3e-07]
[1732973855285,0.35070472,96707.0,96706.0,3.3e-07]
[1732973855579,0.34770472,96707.0,96706.0,3.3e-07]
[1732973855772,0.70850472,96707.0,96706.0,3.3e-07]
[1732973858184,0.70850472,96707.0,96690.0,0.18567648]
[1732973858482,0.051687,96691.0,96690.0,0.18567648]
[1732973858977,0.20687139,96691.0,96690.0,0.18567648]
[1732973859179,0.20687139,96691.0,96684.0,0.3608]
[1732973859180,0.051688,96690.0,96689.0,0.18567648]
[1732973859578,0.20747128,96690.0,96689.0,0.18567648]
[1732973860181,0.051688,96689.0,96688.0,0.18567648]
[1732973860487,0.20683198,96689.0,96688.0,0.18567648]
[1732973861084,0.051689,96688.0,96687.0,0.18567648]
[1732973861485,0.20753707,96688.0,96687.0,0.18567648]
[1732973862286,0.15584807,96688.0,96686.0,0.18567648]
[1732973862488,0.16084807,96688.0,96682.0,0.24756665]
[1732973862979,0.051692,96683.0,96682.0,0.24756665]
[1732973863181,0.051692,96682.0,96680.0,0.3608]
[1732973863377,0.051692,96682.0,96681.0,0.28038848]
[1732973863576,0.051692,96682.0,96681.0,0.0331]
[1732973864382,0.051692,96682.0,96681.0,0.28037182]
[1732973864584,0.051692,96682.0,96681.0,0.0331]
[1732973865088,0.054692,96682.0,96681.0,0.0331]
[1732973866084,0.059692,96682.0,96681.0,0.0331]
[1732973866784,0.059692,96682.0,96681.0,0.21853997]
[1732973866986,0.059692,96682.0,96679.0,0.3608]
[1732973866987,0.008,96682.0,96680.0,0.18543997]
[1732973867293,0.051693,96680.0,96679.0,0.54623997]
[1732973867692,0.051693,96680.0,96679.0,0.3608]
[1732973867987,0.20705825,96680.0,96679.0,0.3608]
[1732973868996,0.21005825,96680.0,96679.0,0.3608]
[1732973870189,0.21405825,96680.0,96679.0,0.3608]
[1732973871595,0.21405825,96680.0,96679.0,0.54623997]
[1732973872693,0.21405825,96680.0,96677.0,0.0302]
[1732973872894,0.051694,96678.0,96677.0,0.0302]
[1732973874290,0.054694,96678.0,96677.0,0.21566798]
[1732973874597,0.056694,96678.0,96677.0,0.0302]
[1732973874793,0.056694,96678.0,96677.0,0.21566716]
[1732973875193,0.056694,96678.0,96677.0,0.0302]
[1732973879490,0.056694,96678.0,96677.0,0.21577775]
[1732973880099,0.056694,96678.0,96677.0,0.0302]
[1732973880698,0.056694,96678.0,96677.0,0.21583314]
[1732973880899,0.056694,96678.0,96677.0,0.0302]
[1732973890697,0.005,96678.0,96672.0,0.30911856]
[1732973890903,0.051697,96673.0,96672.0,0.30911856]
[1732973892503,0.051697,96673.0,96672.0,0.78185655]
[1732973893098,0.051697,96673.0,96672.0,0.47273799]
[1732973893306,0.052697,96673.0,96672.0,0.47273799]
[1732973893805,0.053697,96673.0,96672.0,0.7824798]
[1732973894207,0.053697,96673.0,96672.0,0.47273799]
[1732973894706,0.053697,96673.0,96671.0,0.01229735]
[1732973894707,0.051698,96672.0,96671.0,0.01229735]
[1732973896408,0.052698,96672.0,96671.0,0.01229735]
[1732973900305,0.052698,96672.0,96671.0,0.32207402]
[1732973901402,0.052698,96672.0,96671.0,0.01229735]
[1732973901599,0.052698,96672.0,96671.0,0.48503455]
[1732973901996,0.052698,96672.0,96671.0,0.53673255]
[1732973902609,0.0315,96679.0,96671.0,0.90716905]
[1732973902809,0.0315,96679.0,96678.0,0.30995448]
[1732973903398,0.083194,96679.0,96678.0,0.30995448]
[1732973903605,0.051694,96678.0,96677.0,0.30995448]
[1732973904609,0.0355,96679.0,96673.0,0.051697]
[1732973904911,0.051694,96678.0,96677.0,0.30993468]
[1732973905211,0.051694,96678.0,96677.0,0.78265056]
[1732973905613,0.051694,96678.0,96677.0,1.14345056]
[1732973905908,0.051694,96678.0,96677.0,0.83351588]
[1732973907013,0.056694,96678.0,96677.0,0.83351588]
[1732973909107,0.056694,96678.0,96677.0,1.14337472]
[1732973909310,0.056694,96678.0,96677.0,0.3608]
[1732973910705,0.056694,96678.0,96677.0,1.14336934]
[1732973911110,0.056694,96678.0,96677.0,0.67065884]
[1732973912116,0.056694,96678.0,96677.0,1.14336798]
[1732973912517,0.056694,96678.0,96677.0,0.67065884]
[1732973913209,0.056694,96678.0,96676.0,0.30985884]
[1732973913415,0.056694,96678.0,96677.0,1.14337705]
[1732973913915,0.056694,96678.0,96677.0,0.78257705]
[1732973914117,0.056694,96678.0,96677.0,0.67065884]
[1732973915507,0.056694,96678.0,96677.0,0.3608]
[1732973917610,0.056694,96678.0,96677.0,0.60862305]
[1732973919219,0.056694,96678.0,96677.0,0.24782305]
[1732973919513,0.056694,96678.0,96677.0,0.60862305]
[1732973919719,0.056694,96678.0,96677.0,0.3608]
[1732973921010,0.056694,96678.0,96677.0,0.6086282]
[1732973921821,0.056694,96678.0,96677.0,0.3608]
[1732973927419,0.056694,96678.0,96676.0,0.30985884]
[1732973927624,0.056694,96678.0,96677.0,0.3608]
[1732973928019,0.056694,96678.0,96677.0,0.83350557]
[1732973928924,0.054694,96678.0,96677.0,0.83350557]
[1732973929126,0.056694,96678.0,96677.0,0.83350557]
[1732973932819,0.056694,96678.0,96677.0,0.83350526]
[1732973934722,0.005,96678.0,96677.0,0.88520026]
[1732973937925,0.02069108,96710.0,96677.0,0.83350526]
[1732973938132,0.0313,96709.0,96696.0,0.051684]
[1732973938328,0.20737463,96697.0,96696.0,0.412484]
[1732973938629,0.20737463,96697.0,96696.0,0.051684]
[1732973938824,0.20737463,96697.0,96696.0,0.412484]
[1732973939621,0.20737463,96697.0,96696.0,0.415484]
[1732973939817,0.20737463,96697.0,96696.0,0.60194614]
[1732973940031,0.20737463,96697.0,96696.0,0.416484]
[1732973940229,0.15569063,96697.0,96696.0,0.416484]
[1732973940426,0.051682,96701.0,96696.0,0.416484]
[1732973941420,0.051682,96701.0,96697.0,0.18540329]
[1732973941625,0.051682,96701.0,96696.0,0.416484]
[1732973941626,0.051682,96701.0,96696.0,0.60188729]
[1732973941825,0.0313,96709.0,96696.0,0.60188729]
[1732973942030,0.051683,96700.0,96696.0,0.60188729]
[1732973942226,0.05323572,96698.0,96696.0,0.416484]
[1732973942529,0.05323572,96698.0,96696.0,0.415484]